Cogmind - Beta 13 @@@ ROGUE MODE // 2024.04.14 @ 13:05:39 Player: maddiematics Result: Destroyed by G-34 Mercenary with Small Laser Performance ------------- Evolutions (1) 500 Regions Visited (2) 400 Robots Destroyed (14) 70 Value Destroyed (341) 341 Prototype IDs (0) 0 Alien Tech Used (0) 0 Bonus (0) 0 TOTAL SCORE: 1311 Bonus ------- None Cogmind --------- Core Integrity 0/400 Matter 22/300 Energy 99/100 System Corruption 0% Temperature Cool (6) Movement Core (100) Ox1 Location -9/Materials Parts ------- > --- POWER (1) -------- (None) > --- PROPULSION (2) --- (None) > --- UTILITY (4) ------ Small Storage Unit Visual Processing Unit Signal Interpreter > --- WEAPON (2) ------- (None) > --- INVENTORY (8) ---- Visual Processing Unit Visual Processing Unit Visual Processing Unit Peak State ------------ > --- POWER ------------ Light Ion Engine > --- PROPULSION ------- Aluminum Leg Aluminum Leg > --- UTILITY ---------- Small Storage Unit Visual Processing Unit > --- WEAPON ----------- Particle Gun Particle Gun > --- INVENTORY -------- Ion Engine Compact Wheel Visual Processing Unit Visual Processing Unit Visual Processing Unit Particle Gun [Rating: 11] Favorites ----------- Power Ion Engine Engine Ion Engine Propulsion Aluminum Leg Leg Aluminum Leg Utility Small Storage Unit Device Sensor Array Storage Small Storage Unit Processor Visual Processing Unit Weapon Grenade Launcher Energy Gun Particle Gun Launcher Grenade Launcher Build | -11 -10 -9 ------- Run | Yrd Mat Mat Slots Evolved 2 | . . 2 Power . | . . . Propulsion . | . . . Utility 2 | . . 2 Weapon . | . . . Parts Attached 19 | 6 7 6 Power 5 | 1 1 3 Engine 5 | 1 1 3 Core . | . . . Reactor . | . . . Propulsion 2 | 2 . . Treads . | . . . Leg 2 | 2 . . Wheel . | . . . Hover . | . . . Flight . | . . . Utility 4 | 1 1 2 Device 1 | . . 1 Storage 1 | 1 . . Processor 2 | . 1 1 Hackware . | . . . Protection . | . . . Artifact . | . . . Weapon 8 | 2 5 1 Energy Gun 4 | 2 2 . Energy Cannon . | . . . Ballistic Gun . | . . . Ballistic Cannon . | . . . Launcher 4 | . 3 1 Special Weapon . | . . . Impact Weapon . | . . . Slashing Weapon . | . . . Piercing Weapon . | . . . Special Melee Weapon . | . . . Unidentified Prototypes . | . . . Parts Lost 11 | . 2 9 Power 4 | . 1 3 Propulsion 2 | . . 2 Utility 1 | . . 1 Weapon 4 | . 1 3 Highest Loss Streak 5 | . 2 5 To Critical Strikes . | . . . Average Slot Usage (%) 86 | . 95 84 Engine 9 | . 10 9 Leg 19 | . 28 16 Device 6 | . . 8 Storage 11 | . 14 11 Processor 19 | . 12 22 Energy Gun 3 | . 12 . Launcher 15 | . 15 16 Naked Turns . | . . . Heaviest Build 17 | 10 16 17 Greatest Support 20 | 20 20 20 Greatest Overweight (x) 3 | . . 3 Average Overweight (x) . | . . . Largest Inventory Capacity 8 | 8 8 8 Average Capacity 7 | 7 8 8 Most Carried 8 | 2 8 5 Average Carried 4 | 1 6 4 Final Capacity 8 | 8 8 8 Final Carried 6 | 2 6 3 Class Distribution -------------------- 55% | Mutant 44% | Skirmisher Dominant Class ---------------- Mutant | -10/Materials Skirmisher | -9/Materials Resources | -11 -10 -9 ----------- Run | Yrd Mat Mat Matter Collected 252 | 200 9 43 Remotely . | . . . Salvage Created 208 | . 89 119 Parts 30 | . 12 18 Haulers Intercepted . | . . . Recyclers Shooed 2 | . 2 . Parts Field Recycled . | . . . Retrieved Matter . | . . . Parts Self-Destructed . | . . . Prevented . | . . . Kills | -11 -10 -9 ------- Run | Yrd Mat Mat Combat Hostiles Destroyed 8 | . . 8 AOE 8 | . . 8 Classes Destroyed 6 | . 3 3 Builder 3 | . 2 1 Recycler 1 | . 1 . Watcher 2 | . 2 . Swarmer 2 | . . 2 Grunt 5 | . . 5 Sentry 1 | . . 1 Best Kill Streak 3 | . 3 3 Combat Bots Only 3 | . . 3 Max Kills in Single Turn 2 | . 1 2 Gunslinging . | . . . Exploded 2 | . . 2 Melee . | . . . Uniques/NPCs Destroyed . | . . . Combat | -11 -10 -9 -------- Run | Yrd Mat Mat Hostile Shots Fired 146 | . 30 116 Missed 41 | . 9 32 Damage Taken 1209 | . 341 868 Core 450 | . 45 405 Absorbed by Shields . | . . . Regen/Repaired (Parts) 17 | . . 17 Core Remaining (%) 91 | 100 82 . Volleys Fired 14 | . 4 10 Largest 2 | . 2 2 Hottest 130 | . 130 60 Shots Fired 22 | . 8 14 Gun 2 | . 2 . Cannon . | . . . Launcher 20 | . 6 14 Special . | . . . Kinetic . | . . . Thermal 2 | . 2 . Explosive 20 | . 6 14 Electromagnetic . | . . . Robot Hit Streak 6 | . 3 6 Robot Miss Streak 1 | . 1 1 Penetration Max . | . . . Secondary Targets . | . . . Shots Hit Robots 11 | . 4 7 Core Hits 33 | . 12 21 Critical Kills . | . . . Critical Parts Destroyed . | . . . Critical Strikes . | . . . Melee Attacks . | . . . Impact . | . . . Slashing . | . . . Piercing . | . . . Sneak Attacks . | . . . Combat Hostiles . | . . . Follow-up Attacks . | . . . Damage Inflicted 1118 | . 373 745 Guns 14 | . 14 . Cannons . | . . . Explosions 1103 | . 359 744 Melee . | . . . Ramming 1 | . . 1 Kinetic . | . . . Thermal 95 | . 95 . Explosive 992 | . 248 744 Electromagnetic 30 | . 30 . Impact . | . . . Slashing . | . . . Piercing . | . . . Highest Corruption . | . . . Average Corruption . | . . . Corruption Purged . | . . . Corruption Blocked . | . . . Overload Shots . | . . . Overflow Damage 44 | . 44 . Projectiles . | . . . Explosions 44 | . 44 . Melee . | . . . Knockbacks . | . . . Impact . | . . . Kinetic . | . . . Secondary . | . . . Self-Inflicted Damage 158 | . 110 48 Shots 5 | . 3 2 Rammed 1 | . . 1 Targets Rammed 1 | . . 1 Kicked . | . . . Crushed . | . . . Highest Temperature 69 | . 69 3 Average Temperature 27 | . 34 3 Received Heat Transfer 330 | . 54 276 Siege Activations . | . . . Robots Corrupted . | . . . Combat Hostiles . | . . . Parts Fried . | . . . Impact Corruptions . | . . . Robots Melted . | . . . Combat Hostiles . | . . . Parts Melted . | . . . Heat Transferred 87 | . 87 . Parts Sabotaged . | . . . Parts Stolen . | . . . Parts Stripped . | . . . Power Chain Reactions . | . . . Alert | -11 -10 -9 ------- Run | Yrd Mat Mat Peak Influence 181 | . 116 181 Initial 48 | . . 48 Average 74 | . 48 92 Maximum Alert Level . | . . . Low Security (%) 100 | 100 100 100 Level 1 . | . . . Level 2 . | . . . Level 3 . | . . . Level 4 . | . . . Level 5 . | . . . High Security . | . . . Max Security . | . . . Squads Dispatched 4 | . 1 3 Investigation . | . . . Extermination . | . . . Reinforcement 4 | . 1 3 Assault . | . . . Garrison . | . . . Intercept . | . . . Searches Triggered . | . . . Construction Impeded 1 | . . 1 Haulers Reinforced . | . . . Active Scanning Responses . | . . . Cargo Convoy Interrupts . | . . . Stealth | -11 -10 -9 --------- Run | Yrd Mat Mat Distress Signals 2 | . . 2 Communications Jammed . | . . . Distress Signals . | . . . Times Spotted 27 | . 9 18 Peak Tracking Total 5 | . 5 5 Tactical Retreats 1 | . . 1 Traps | -11 -10 -9 ------- Run | Yrd Mat Mat Traps Triggered . | . . . Indirectly . | . . . Trap Hack Attempts . | . . . Triggered . | . . . Disarmed . | . . . Reprogrammed . | . . . Reused . | . . . Traps Extracted . | . . . Installed . | . . . Triggered . | . . . Machines | -11 -10 -9 ---------- Run | Yrd Mat Mat Machines Disabled 4 | . 2 2 Max in Single Turn 1 | . 1 1 Machines Repaired . | . . . Machines Dismantled . | . . . Machines Sabotaged . | . . . Overloaded Fab Kills . | . . . Hacking | -11 -10 -9 --------- Run | Yrd Mat Mat Machines Accessed 1 | . . 1 Terminals . | . . . Fabricators . | . . . Repair Stations 1 | . . 1 Recycling Units . | . . . Scanalyzers . | . . . Garrison Access . | . . . Total Hacks 2 | . . 2 Successful 2 | . . 2 Failed . | . . . Catastrophic . | . . . Database Lockouts . | . . . Manual . | . . . Terminals . | . . . Fabricators . | . . . Repair Stations 2 | . . 2 Recycling Units . | . . . Scanalyzers . | . . . Garrison Access . | . . . Terminal Hacks . | . . . Fabricator Hacks . | . . . Repair Station Hacks 2 | . . 2 Scan Component 1 | . . 1 Repair 1 | . . 1 Recycling Unit Hacks . | . . . Scanalyzer . | . . . Garrison Access Hacks . | . . . Unauthorized Hacks . | . . . Terminals . | . . . Fabricators . | . . . Repair Stations . | . . . Recycling Units . | . . . Scanalyzers . | . . . Garrison Access . | . . . Data Cores Recovered . | . . . Used . | . . . Hacking Detections . | . . . Full Trace Events . | . . . Feedback Events . | . . . Feedback Blocked . | . . . Robot Schematics Acquired . | . . . Robots Built . | . . . Authchips . | . . . Time . | . . . Total Robot Build Rating . | . . . Part Schematics Acquired . | . . . Parts Built . | . . . Authchips . | . . . Time . | . . . Total Part Build Rating . | . . . Parts Repaired 1 | . . 1 Time 26 | . . 26 Parts Recycled . | . . . Recycled Matter . | . . . Retrieved Matter . | . . . Retrieved Components . | . . . Parts Scanalyzed . | . . . Part Schematics Acquired . | . . . Parts Damaged . | . . . Bothacking | -11 -10 -9 ------------ Run | Yrd Mat Mat Used RIF Installer . | . . . Robots Hacked . | . . . Non-combat . | . . . Combat . | . . . Robot Hacks Applied . | . . . Relay Couplers Released . | . . . Fabnet Peak Effective % . | . . . Robots Rewired . | . . . Allies Hacked . | . . . Hacks Repelled . | . . . Allies | -11 -10 -9 -------- Run | Yrd Mat Mat Total Allies . | . . . Largest Group . | . . . Highest-Rated Group . | . . . Highest-Rated Ally . | . . . Total Orders . | . . . Ally Attacks . | . . . Total Damage . | . . . Kills . | . . . Allies Corrupted . | . . . Allies Melted . | . . . Intel | -11 -10 -9 ------- Run | Yrd Mat Mat Robot Analysis Total . | . . . Derelict Logs Recovered . | . . . Drone Launches . | . . . Drone Recoveries . | . . . Exploration | -11 -10 -9 ------------- Run | Yrd Mat Mat Turns Passed 794 | 68 176 550 Spaces Moved 472 | 53 117 302 Core 75 | 9 . 66 Treads . | . . . Legs 397 | 44 117 236 Wheels . | . . . Hover . | . . . Flight . | . . . Fastest Speed 50 | 50 120 100 Average Speed 126 | 108 120 132 Slowest Speed 200 | 120 120 200 Overloaded Moves . | . . . Propulsion Burnouts . | . . . Robots Hopped . | . . . Cave-ins Triggered . | . . . Exploration Rate (%) 15 | 4 26 15 Regions Visited 2 Branch Regions . Pre-discovered Areas . | . . . Known Exits Taken . | . . . Unknown Exits Taken 2 | 1 1 . Scrap Searched . | . . . Spaces Dug 21 | . 10 11 Terrain Destroyed 109 | . 46 63 Melee . | . . . Projectile . | . . . AOE 109 | . 46 63 Terrain Rammed . | . . . Walls Destroyed . | . . . Machines Disabled . | . . . Actions | -11 -10 -9 --------- Run | Yrd Mat Mat Total 645 | 60 146 439 Wait 118 | . . 118 Move 470 | 52 116 302 Hop . | . . . Pick Up 16 | 2 12 2 Fast Attach 9 | 6 2 1 Attach 8 | . 3 5 Detach . | . . . Swap 2 | . 2 . Drop 7 | . 7 . Fire 14 | . 4 10 Melee . | . . . Ram 1 | . . 1 Kick . | . . . Crush . | . . . Escape Stasis . | . . . Rewire . | . . . Trap . | . . . Miscellaneous . | . . . Route ------- -11/Scrapyard -10/Materials -9/Materials History --------- Turn | Location | Event 5 | -11/Scrapyard | Discovered new exit (range 16) 69 | -11/Scrapyard | Entered Materials 231 | -10/Materials | Discovered new exit (range 11) 245 | -10/Materials | Entered another Materials area 245 | -9/Materials | Evolved 2 slots: Utility x2 297 | -9/Materials | Repaired Ion Engine 546 | -9/Materials | Build established: Skirmisher 680 | -9/Materials | Lost 5 parts (1p1n1u2w) 739 | -9/Materials | Lost 3 parts (1p1n1w) 762 | -9/Materials | Core integrity fell below 50% 782 | -9/Materials | Core integrity fell below 20% 795 | -9/Materials | Destroyed by G-34 Mercenary with Small Laser Last Messages --------------- K-01 Serf collects debris. U-05 Engineer lays Concrete. Acquired 6 matter. U-05 Engineer builds a Wall. U-05 Engineer lays Concrete. R-06 Scavenger collects Flight Unit. U-05 Engineer builds a Wall. U-05 Engineer lays Concrete. R-06 Scavenger collects Flight Unit. U-05 Engineer lays Concrete. Lgt. Ion Engine destroyed. U-05 Engineer lays Concrete. U-05 Engineer builds a Wall. U-05 Engineer lays Concrete. W-16 Scout sends out distress signal. U-05 Engineer lays Concrete. U-05 Engineer builds a Wall. Slammed into M-13 Machinist. M-13 Machinist repairs G-34 Mercenary. Ion Engine destroyed. Map ----- +----------------------------------------------------+ | ?????????????????????????????????????????????????? | | ?????????????????????????????????????????????????? | | ?????????????????????????????????????????????????? | | ????????? ?????????????????????????????????????? | | ??!!????? ?????????????????????????????????????? | | ??!!????? ?????????????????????????????????????? | | ??!=????# #????????????????????????????????????? | | ?? ????# #????????????????????????????????????? | | ?? ????# ?????????????????????????????????????? | | ??/#????# ?????????????????????????????????????? | | ## ###??# ?????????????????????????????????????? | | ##?? ?????????????????????????????????????? | | #?? ?????????????????????????????????????? | | #?? ?????????????????????????????????????? | | ??? ?????????????????????????????????????? | | ##?? ?????????????????????????????????????? | | # #??# #?????????????????????????????????????? | | # #???# #??#######????????????????????????????? | | # ##### #??# ##???????????????????????????? | | #% # ####+###### # ##??????????????????????????? | | # # #????###########???????????? | | # # ""###### #???????????? | | # # # ""## # #???????????? | | # # # """""## # #???????????? | | # + # """""## # #???????????? | | # # # """""## @ # """ """ #???????????? | | # # # """""## # """ """ #???????????? | | # # # """""## s# """ """ #???????????? | | # # # ## g # #???????????? | | # ##############+######/######+#####???????????? | | #% #????????????? | | + #????????????? | | #= #????????????? | | ### ############################+######??????????? | | # ## #??????????????????# """ #??????????? | | #######???????????????????# "R" """ #??????????? | | #?????????????????????????# " " """ #??????????? | | ??????????????????????????# """ #??????????? | | ??????????????????????????# #??????????? | | ??????????????????????????# ] #??????????? | | ??????????????????????????# #??????????? | | ??????????????????????????#############??????????? | | | | | | | | | | | | | | | | | +----------------------------------------------------+ Best States ------------- Heat Dissipation 28 Energy Generation 10 Energy Capacity 250 Matter Stores 240 Matter Capacity 300 Sight Range 18 Robot Scan Range 14 Terrain Scan Density 10 Evasion (%) 55 Item Schematics ----------------- None Robot Schematics ------------------ None Fabricated ------------ Nothing Alien Tech Used ----------------- None Achievements -------------- Oops Challenges ------------ None Game ------ Seed CloakPhaseArray Manual? 0 Play Time 00:11:52 Cumulative 2.2 hours Start 2024.04.14 @ 12:55:00 End 2024.04.14 @ 13:05:39 Sessions 1 Manual Loads 0 Difficulty Rogue Special Mode None Game No. 6 Rogue 6 Adventurer 0 Explorer 0 Win Type - Total 0 Types 0/0/0/0/0/0/0/0/0 Lore% 4 Gallery% 5 Achievement% 6 Wizard Run 0 Options --------- Layout 1 ASCII 0 Keyboard 0 Movement Vi Keybinds 0 Fullscreen 1 Font 32/Terminus Map View 77x35 Zoom Use 0% Tactical HUD 0 Map Filters NONE Filters NONE Steam 1 RUN: 1efecda5-8d38-44bb-8af9-6284bb64b4c3